bitfinex/quotes_BTCUSD_20230114
["timestamp","ask_amount","ask_price","bid_price","bid_amount"]
[1673667392638,0.48732423,20892.0,20888.0,0.14232986]
[1673667392881,0.48732423,20892.0,20889.0,0.03937]
[1673667393184,0.48732423,20892.0,20889.0,0.2]
[1673667393404,0.00866423,20892.0,20890.0,0.039365]
[1673667393690,0.14820173,20891.0,20889.0,0.14232986]
[1673667393959,0.14820173,20891.0,20890.0,0.039364]
[1673667394247,0.48731823,20892.0,20890.0,0.039364]
[1673667394490,0.63534919,20892.0,20891.0,0.039363]
[1673667394764,0.67804418,20892.0,20889.0,0.347]
[1673667395327,0.51150695,20891.0,20889.0,0.147]
[1673667395329,0.17471694,20891.0,20889.0,0.10000001]
[1673667395516,0.65339194,20891.0,20889.0,0.14]
[1673667395783,0.17471694,20891.0,20888.0,0.2]
[1673667396064,0.17471694,20891.0,20889.0,0.123367]
[1673667396408,0.17471694,20891.0,20889.0,0.098]
[1673667396601,0.6520593,20892.0,20888.0,0.67720169]
[1673667396858,0.1748711,20890.0,20888.0,0.56120169]
[1673667397126,0.6535771,20890.0,20888.0,0.47720169]
[1673667397997,0.66943195,20890.0,20885.0,0.88776322]
[1673667398286,0.19072595,20889.0,20885.0,0.87888358]
[1673667398565,0.66945795,20889.0,20885.0,0.83302418]
[1673667398817,0.66945795,20889.0,20884.0,0.14251986]
[1673667399075,0.478732,20889.0,20885.0,0.139]
[1673667399348,0.478732,20889.0,20885.0,0.61620169]
[1673667399637,0.18561646,20888.0,20885.0,0.47720169]
[1673667399867,0.66947695,20888.0,20885.0,0.139]
[1673667400129,0.478751,20888.0,20885.0,0.139]
[1673667400397,0.66947695,20888.0,20885.0,0.139]
[1673667400729,0.478751,20888.0,20885.0,0.099]
[1673667401181,0.66947695,20888.0,20883.0,0.14232986]
[1673667401489,0.19072595,20887.0,20885.0,0.139]
[1673667401700,0.2,20886.0,20882.0,0.35582249]
[1673667401975,0.957578,20886.0,20885.0,0.066]
[1673667402263,0.957578,20886.0,20882.0,0.14232986]
[1673667402514,0.16433828,20885.0,20883.0,0.139]
[1673667402981,0.478835,20884.0,20882.0,0.14232986]
[1673667402982,0.478835,20884.0,20882.0,0.28132986]
[1673667403190,0.64316228,20885.0,20882.0,0.35582249]
[1673667403415,0.64316228,20885.0,20883.0,0.14232986]
[1673667403635,0.64316228,20885.0,20884.0,0.14232986]
[1673667404088,0.006,20886.0,20884.0,0.14232986]
[1673667404361,0.18576451,20886.0,20884.0,0.14232986]
[1673667404639,0.002,20885.0,20884.0,0.14232986]
[1673667404888,0.18576451,20886.0,20884.0,0.14232986]
[1673667405160,0.005,20885.0,20884.0,0.35582249]
[1673667405437,0.005,20885.0,20884.0,0.14232986]
[1673667406248,0.13839,20885.0,20884.0,0.14232986]
[1673667406510,0.617202,20885.0,20883.0,0.14232986]
[1673667407043,0.617202,20885.0,20883.0,0.35582249]
[1673667407323,0.14421263,20884.0,20883.0,0.14232986]
[1673667407581,0.14421263,20884.0,20883.0,0.42182249]
[1673667408371,0.14421263,20884.0,20883.0,0.20832986]
[1673667408615,0.478835,20884.0,20883.0,0.066]
[1673667408871,1.001616,20884.0,20883.0,0.066]
[1673667409163,1.18045862,20884.0,20881.0,0.35582249]
[1673667409434,0.174099,20883.0,20882.0,0.14232986]
[1673667409709,0.678858,20883.0,20882.0,0.14232986]
[1673667410230,0.87966908,20883.0,20882.0,0.14232986]
[1673667410491,0.88166908,20883.0,20882.0,0.20832986]
[1673667410755,0.88166908,20883.0,20882.0,0.066]
[1673667411278,1.20245008,20883.0,20882.0,0.066]
[1673667411532,0.88166908,20883.0,20882.0,0.20832986]
[1673667411786,0.002,20883.0,20882.0,0.5218225]
[1673667412061,0.002,20883.0,20882.0,0.6826047]
[1673667412323,0.002,20883.0,20882.0,0.58260469]
[1673667412556,0.002,20883.0,20882.0,1.0095923]
[1673667413069,0.002,20883.0,20882.0,1.2095923]
[1673667413375,0.002,20883.0,20882.0,1.41307858]
[1673667414363,0.002,20883.0,20882.0,1.26148569]
[1673667414870,0.007,20883.0,20882.0,1.69346271]
[1673667415385,0.007,20883.0,20882.0,1.26148569]
[1673667416166,0.007,20883.0,20882.0,0.105403]
[1673667416167,0.99630607,20883.0,20882.0,0.105403]
[1673667416436,1.33075495,20883.0,20882.0,0.70884794]
[1673667416692,1.33075495,20883.0,20882.0,0.2088786]
[1673667416693,1.140029,20883.0,20882.0,0.2088786]
[1673667417199,1.140029,20883.0,20882.0,0.20876379]
[1673667417472,1.138029,20883.0,20882.0,0.35725667]
[1673667417693,1.184029,20883.0,20882.0,0.36125667]
[1673667417954,1.138029,20883.0,20882.0,0.35725667]
[1673667418226,1.115759,20883.0,20882.0,0.22430676]
[1673667418529,1.115759,20883.0,20882.0,0.15292778]
[1673667418733,1.115759,20883.0,20882.0,0.01]
[1673667419241,1.115759,20883.0,20882.0,0.15292778]
[1673667419499,1.157539,20883.0,20881.0,0.35723454]
[1673667419763,1.157539,20883.0,20882.0,0.011]
[1673667419764,0.881758,20883.0,20882.0,0.011]
[1673667420023,1.202539,20883.0,20882.0,0.011]
[1673667420531,0.2,20882.0,20880.0,0.22566747]
[1673667420825,1.610811,20881.0,20880.0,0.01136071]
[1673667421396,1.810811,20881.0,20880.0,0.01136071]
[1673667423229,1.7671269,20881.0,20880.0,0.23666747]
[1673667423452,1.610811,20881.0,20880.0,0.23666747]
[1673667423737,1.654811,20881.0,20880.0,0.03436071]
[1673667423988,1.854811,20881.0,20880.0,0.03436071]
[1673667424761,2.01838985,20881.0,20880.0,0.03436071]
[1673667425029,1.81838985,20881.0,20880.0,0.03436071]
[1673667425856,1.854811,20881.0,20880.0,0.03436071]
[1673667427469,1.83916615,20881.0,20880.0,0.03436071]
[1673667427760,1.654811,20881.0,20880.0,0.03436071]
[1673667428854,0.522904,20881.0,20880.0,0.13436072]
[1673667429159,0.044,20881.0,20880.0,0.03436071]
[1673667429446,0.044,20881.0,20880.0,0.24866747]
[1673667430497,0.044,20881.0,20880.0,0.53439287]
[1673667430837,0.044,20881.0,20880.0,0.07377271]
[1673667431066,0.045,20882.0,20881.0,0.2]
[1673667431323,0.045,20882.0,20881.0,1.58441358]
[1673667431576,0.005,20883.0,20881.0,1.62382158]
[1673667431903,0.005,20883.0,20882.0,0.47720169]
[1673667432172,0.005,20883.0,20882.0,1.19548669]
[1673667432427,0.005,20883.0,20882.0,1.62379458]
[1673667432992,0.0001,20883.0,20882.0,1.76279458]
[1673667433267,6e-05,20885.0,20883.0,0.2]
[1673667433562,0.93858471,20899.0,20883.0,0.2]
[1673667433563,0.00866423,20892.0,20884.0,2.30552938]
[1673667433840,0.00866423,20892.0,20891.0,0.49968464]
[1673667434111,0.17826673,20892.0,20891.0,0.2821426]
[1673667434372,0.07478423,20892.0,20891.0,0.039369]
[1673667434862,0.00882003,20890.0,20888.0,0.14277359]
[1673667435391,0.00882003,20890.0,20889.0,0.039365]
[1673667435649,0.00882003,20890.0,20887.0,0.35692547]
[1673667435917,0.00882003,20890.0,20888.0,0.141]
[1673667436207,0.00882003,20890.0,20889.0,0.03937]
[1673667436450,0.00882003,20890.0,20889.0,0.017]
[1673667436721,0.18240824,20890.0,20889.0,0.18214359]
[1673667437285,0.00882003,20890.0,20889.0,0.73072357]
[1673667437540,0.00882003,20890.0,20889.0,0.7478329]
[1673667438358,0.00882003,20890.0,20889.0,0.73076607]
[1673667438891,0.20274531,20890.0,20889.0,0.87356726]
[1673667439160,0.00882003,20890.0,20889.0,0.65937288]
[1673667439409,0.00882003,20890.0,20889.0,0.80037288]
[1673667439677,0.26836764,20890.0,20889.0,0.18217119]
[1673667440155,0.26836764,20890.0,20889.0,0.141]
[1673667440157,0.07494003,20890.0,20889.0,0.141]
[1673667440406,0.74683161,20890.0,20886.0,0.35699557]
[1673667440684,0.19072595,20889.0,20886.0,0.35699557]
[1673667440934,0.48751703,20890.0,20886.0,0.35699557]
[1673667441241,0.478743,20888.0,20886.0,0.35699557]
[1673667441752,0.17577119,20887.0,20886.0,0.44399557]
[1673667442001,0.17577119,20887.0,20886.0,0.22980119]
[1673667442257,0.65453719,20887.0,20886.0,0.14280119]
[1673667442526,0.478766,20887.0,20886.0,0.22980119]
[1673667442791,0.478743,20888.0,20886.0,0.35699557]
[1673667443056,0.00882003,20890.0,20887.0,1.01638819]
[1673667443313,0.00882003,20890.0,20889.0,0.14278224]
[1673667443580,0.00882003,20890.0,20889.0,0.87352929]
[1673667444141,0.00882003,20890.0,20889.0,0.73074705]
[1673667444394,0.00882003,20890.0,20889.0,0.65929763]
[1673667444662,0.0911205,20897.0,20890.0,0.2]
[1673667444663,0.0093405,20897.0,20890.0,0.2]
[1673667444916,0.20975354,20897.0,20894.0,0.14269123]
[1673667445213,0.20975354,20897.0,20895.0,0.6165477]
[1673667445497,0.20975354,20897.0,20896.0,0.5772017]
[1673667445498,0.0093405,20897.0,20896.0,0.5772017]
[1673667445757,0.0093405,20897.0,20896.0,0.6165397]
[1673667446014,0.0093405,20897.0,20896.0,0.75923093]
[1673667446293,0.0093405,20897.0,20896.0,0.71653969]
[1673667446574,0.0093405,20897.0,20896.0,0.039338]
[1673667446575,0.47946519,20897.0,20896.0,0.039338]
[1673667446848,0.6212675,20897.0,20895.0,0.087]
[1673667447111,0.15589234,20896.0,20895.0,0.087]
[1673667447378,0.15589234,20896.0,20893.0,0.14269123]
[1673667447647,0.82517829,20896.0,20893.0,0.47720169]
[1673667448139,0.82517829,20896.0,20895.0,0.087]
[1673667448159,0.63445234,20896.0,20893.0,0.47720169]
[1673667448409,0.63445234,20896.0,20893.0,0.61720169]
[1673667448656,0.63445234,20896.0,20894.0,0.039341]
[1673667448914,0.4878775,20897.0,20893.0,0.75989292]
[1673667449181,0.4878775,20897.0,20894.0,0.039345]
[1673667449455,0.4878775,20897.0,20893.0,0.75989292]
[1673667449705,0.4878775,20897.0,20894.0,0.039344]
[1673667449958,0.4878775,20897.0,20895.0,0.039341]
[1673667450258,0.4878775,20897.0,20893.0,1.03392977]
[1673667450503,0.83094768,20897.0,20893.0,0.75989292]
[1673667450720,0.83094768,20897.0,20894.0,0.039344]
[1673667450995,0.64022173,20897.0,20894.0,0.141]
[1673667451272,0.64022173,20897.0,20893.0,0.61989292]
[1673667451548,0.14999142,20896.0,20894.0,0.039344]
[1673667451834,0.14999142,20896.0,20893.0,0.61989292]
[1673667452114,0.14999142,20896.0,20894.0,0.141]
[1673667452405,0.14999142,20896.0,20895.0,0.039342]
[1673667452616,0.14999142,20896.0,20894.0,0.141]
[1673667453150,0.62855542,20896.0,20894.0,0.141]
[1673667453928,0.62855542,20896.0,20895.0,0.039342]
[1673667454190,0.14999142,20896.0,20894.0,0.141]
[1673667455508,0.14999142,20896.0,20894.0,0.61820169]
[1673667457115,0.0093405,20897.0,20895.0,0.51654269]
[1673667457374,0.0093405,20897.0,20895.0,0.47720169]
[1673667457621,0.0093405,20897.0,20896.0,0.51653969]
[1673667458695,0.0093405,20897.0,20896.0,0.65753969]
[1673667459469,0.0093405,20897.0,20896.0,1.87795855]
[1673667459749,0.0093405,20897.0,20896.0,1.80831008]
[1673667460015,0.0093405,20897.0,20896.0,2.43366921]
[1673667460267,0.0093405,20897.0,20896.0,2.00831008]
[1673667460526,0.0093405,20897.0,20896.0,2.14731008]
[1673667460809,0.0093405,20897.0,20896.0,2.00831008]
[1673667461289,0.00190847,20898.0,20897.0,0.0092995]
[1673667461309,0.00361866,20899.0,20897.0,0.0092995]
[1673667461533,0.00361866,20899.0,20898.0,0.94279204]
[1673667461793,0.00361866,20899.0,20898.0,1.45152599]
[1673667462084,0.00361866,20899.0,20898.0,1.55028614]
[1673667462349,0.00361866,20899.0,20898.0,1.83448762]
[1673667462598,0.00814308,20900.0,20899.0,0.2]
[1673667462854,0.00814308,20900.0,20899.0,1.03228039]
[1673667463170,0.00814308,20900.0,20899.0,1.07160221]
[1673667463382,0.00814308,20900.0,20899.0,1.21377239]
[1673667463940,0.00814308,20900.0,20899.0,1.68925714]
[1673667464448,0.00814308,20900.0,20899.0,1.01076614]
[1673667464699,0.00814308,20900.0,20899.0,0.93959935]
[1673667464969,0.00814308,20900.0,20899.0,1.4948418]
[1673667465305,0.00814308,20900.0,20899.0,1.6891026]
[1673667465518,0.00814308,20900.0,20899.0,1.33401469]
[1673667465779,0.00814308,20900.0,20899.0,1.65149699]
[1673667466033,0.00814308,20900.0,20899.0,1.33401469]
[1673667466386,0.00814308,20900.0,20899.0,1.68910668]
[1673667466597,0.00814308,20900.0,20899.0,0.65552369]
[1673667466847,0.00814308,20900.0,20899.0,1.29506017]
[1673667467111,0.07426308,20900.0,20899.0,1.29506195]
[1673667467379,0.15602935,20900.0,20899.0,0.32045463]
[1673667467924,0.15602935,20900.0,20899.0,0.28113263]
[1673667467932,0.15602935,20900.0,20899.0,0.139]
[1673667468690,0.63449735,20900.0,20899.0,0.49432327]
[1673667468945,0.63449735,20900.0,20899.0,0.28113263]
[1673667469231,0.63449735,20900.0,20899.0,0.14213263]
[1673667469476,0.63549735,20900.0,20899.0,0.28113263]
[1673667470237,0.63449735,20900.0,20899.0,0.4263768]
[1673667470497,0.63449735,20900.0,20899.0,0.63643481]
[1673667470498,0.63549735,20900.0,20899.0,0.63643481]
[1673667470734,0.63449735,20900.0,20899.0,0.21319064]
[1673667471011,0.63549735,20900.0,20899.0,0.49465585]
[1673667472044,0.63449735,20900.0,20899.0,0.35565585]
[1673667472310,0.63549735,20900.0,20899.0,0.63743481]
[1673667472553,0.63649735,20900.0,20899.0,0.73743481]
[1673667472840,0.63649735,20900.0,20899.0,0.52424417]
[1673667473341,0.63449735,20900.0,20899.0,0.49807668]
[1673667474882,0.63449735,20900.0,20899.0,0.35641145]
[1673667475127,0.63549735,20900.0,20899.0,0.5981098]
[1673667475390,0.63449735,20900.0,20899.0,0.28424417]
[1673667475661,0.63449735,20900.0,20899.0,0.63953826]
[1673667475894,0.65649735,20900.0,20899.0,0.63953826]
[1673667476153,0.63449735,20900.0,20899.0,0.63953826]
[1673667476394,0.65649735,20900.0,20899.0,0.35529409]
[1673667476948,0.17802935,20900.0,20898.0,0.42626235]
[1673667477736,0.15602935,20900.0,20899.0,0.039322]
[1673667478014,0.17802935,20900.0,20898.0,0.42626235]
[1673667478305,0.15602935,20900.0,20899.0,0.039322]
[1673667478546,0.00914308,20900.0,20899.0,0.039322]
[1673667478791,0.00814308,20900.0,20899.0,0.039322]
[1673667479046,0.00914308,20900.0,20899.0,0.139322]
[1673667479608,0.00914308,20900.0,20899.0,0.61652369]
[1673667480361,0.00814308,20900.0,20899.0,0.51652369]
[1673667481185,0.00914308,20900.0,20899.0,0.61652369]
[1673667481690,0.00914308,20900.0,20899.0,1.24873926]
[1673667481991,0.00814308,20900.0,20899.0,0.71652369]
[1673667482258,0.01014308,20900.0,20899.0,1.48773722]
[1673667482512,0.25014308,20900.0,20899.0,0.85552369]
[1673667482768,0.24814308,20900.0,20899.0,0.71652369]
[1673667483029,0.24914308,20900.0,20899.0,0.81652369]
[1673667483640,0.24914308,20900.0,20899.0,0.61652369]
[1673667484148,0.24814308,20900.0,20899.0,0.51652369]
[1673667484421,0.25014308,20900.0,20899.0,0.65552369]
[1673667486333,0.25014308,20900.0,20899.0,1.28870196]
[1673667487085,0.25014308,20900.0,20899.0,1.76718015]
[1673667487857,0.25014308,20900.0,20899.0,1.76717872]
[1673667488076,0.25014308,20900.0,20899.0,1.13401469]
[1673667488605,0.25014308,20900.0,20899.0,1.690497]
[1673667488919,0.25014308,20900.0,20899.0,2.27085603]
[1673667489101,0.25014308,20900.0,20899.0,1.79049699]
[1673667489363,0.25014308,20900.0,20899.0,2.27085603]
[1673667489879,0.25014308,20900.0,20899.0,2.13185603]
[1673667489880,0.24814308,20900.0,20899.0,2.13185603]
[1673667490140,0.0023764,20903.0,20900.0,0.67720169]
[1673667490400,0.0023764,20903.0,20902.0,0.47720169]
[1673667490639,0.0023764,20903.0,20902.0,1.61222429]
[1673667490898,0.0023764,20903.0,20902.0,1.65153229]
[1673667491196,0.01024709,20904.0,20903.0,0.2]
[1673667491484,0.01024709,20904.0,20903.0,2.09060129]
[1673667491749,0.01024709,20904.0,20903.0,2.12990429]
[1673667493347,0.01024709,20904.0,20903.0,2.26790429]
[1673667493618,1.29e-05,20905.0,20903.0,2.4832043]
[1673667494087,0.17178375,20916.0,20904.0,1.57396904]
[1673667494091,0.17178375,20916.0,20905.0,0.2]
[1673667494358,5.52e-06,20911.0,20906.0,1.27699207]
[1673667494615,5.52e-06,20911.0,20910.0,0.1153]
[1673667494884,5.52e-06,20911.0,20910.0,1.75614203]
[1673667495153,5.52e-06,20911.0,20910.0,6.79541203]
[1673667496546,5.52e-06,20911.0,20910.0,6.09375]
[1673667496825,5.52e-06,20911.0,20910.0,3.58641577]
[1673667497088,5.52e-06,20911.0,20910.0,3.43295169]
[1673667497365,5.52e-06,20911.0,20910.0,2.56166611]
[1673667497614,5.52e-06,20911.0,20910.0,1.79300034]
[1673667497903,5.52e-06,20911.0,20910.0,2.42300402]
[1673667498220,5.52e-06,20911.0,20910.0,1.79300034]
[1673667498476,5.52e-06,20911.0,20910.0,1.79306034]
[1673667499009,5.52e-06,20911.0,20910.0,2.42309128]
[1673667499273,5.52e-06,20911.0,20910.0,1.77201169]
[1673667499621,5.52e-06,20911.0,20910.0,1.63301169]
[1673667499838,5.52e-06,20911.0,20910.0,1.77201169]
[1673667500095,5.52e-06,20911.0,20910.0,1.63301169]
[1673667500436,5.52e-06,20911.0,20910.0,1.77201169]
[1673667500622,5.52e-06,20911.0,20910.0,2.62199368]
[1673667500908,0.66477931,20918.0,20911.0,5.448e-05]
[1673667500909,0.17629655,20917.0,20911.0,5.448e-05]
[1673667501166,0.17629655,20917.0,20916.0,0.14211979]
[1673667501445,0.48969452,20918.0,20916.0,0.51644969]
[1673667501725,0.48969452,20918.0,20917.0,0.47720169]
[1673667501997,0.1794101,20916.0,20915.0,0.35529947]
[1673667502268,0.1794101,20916.0,20915.0,0.14211979]
[1673667502528,0.1794101,20916.0,20914.0,0.35529947]
[1673667502788,0.1794101,20916.0,20915.0,0.14211979]
[1673667503088,0.48969452,20918.0,20915.0,0.75856549]
[1673667503343,0.1820039,20918.0,20916.0,0.51644569]
[1673667503612,0.1820039,20918.0,20917.0,0.47720169]
[1673667503886,0.17818449,20918.0,20917.0,0.51643969]
[1673667504149,0.00781611,20918.0,20917.0,0.51643969]
[1673667504677,0.00781611,20918.0,20917.0,0.47720169]
[1673667505030,0.00781611,20918.0,20917.0,0.65855848]
[1673667505215,0.00781611,20918.0,20917.0,1.51000999]
[1673667505479,0.23221611,20918.0,20917.0,1.46789019]
[1673667505727,0.478967,20931.0,20924.0,0.47720169]
[1673667505998,0.15802984,20928.0,20926.0,0.0499]
[1673667506280,0.15802984,20928.0,20927.0,0.6163917]
[1673667506538,0.15802984,20928.0,20927.0,0.60296043]
[1673667506807,0.15802984,20928.0,20927.0,0.47720169]
[1673667507091,0.15802984,20928.0,20926.0,0.0499]
[1673667507092,0.477828,20928.0,20926.0,0.0499]
[1673667507338,0.320781,20927.0,20926.0,0.0499]
[1673667507623,1.476483,20927.0,20926.0,0.0499]
[1673667507870,1.42310471,20927.0,20926.0,0.52710169]
[1673667508141,1.42310471,20927.0,20926.0,0.53410169]
[1673667508142,0.62447271,20927.0,20926.0,0.53410169]
[1673667508621,0.477827,20929.0,20926.0,0.53410169]
[1673667508622,0.64462983,20929.0,20926.0,0.53410169]
[1673667508918,0.64462983,20929.0,20927.0,0.47720169]
[1673667509171,0.16680283,20929.0,20928.0,0.47720169]
[1673667509421,0.9089,20930.0,20928.0,0.47720169]
[1673667509688,0.9089,20930.0,20929.0,0.51638969]
[1673667509689,0.15570401,20930.0,20929.0,0.51638969]
[1673667510197,0.15570401,20930.0,20929.0,0.47720169]
[1673667510471,0.478969,20931.0,20929.0,0.47720169]
[1673667510740,0.478969,20931.0,20930.0,0.51637969]
[1673667510995,0.14935922,20930.0,20928.0,0.007]
[1673667511294,0.81786817,20930.0,20929.0,0.47720169]
[1673667511559,0.82714222,20930.0,20929.0,0.007]
[1673667511832,0.998564,20930.0,20926.0,0.00019]
[1673667512081,0.96482495,20929.0,20926.0,0.00019]
[1673667512363,0.1153,20927.0,20926.0,0.00019]
[1673667512636,0.571179,20927.0,20926.0,0.00019]
[1673667512917,0.489399,20927.0,20926.0,0.00019]
[1673667513191,0.489399,20927.0,20919.0,0.26208083]
[1673667513451,0.955812,20925.0,20920.0,0.47720169]
[1673667513918,0.955812,20925.0,20919.0,0.34864957]
[1673667513919,0.19072595,20924.0,20921.0,0.47720169]
[1673667514184,1.94533295,20923.0,20919.0,0.26208083]
[1673667514438,1.94533295,20923.0,20919.0,0.73928252]
[1673667514439,0.56482495,20922.0,20919.0,0.73928252]
[1673667514710,1.46748295,20921.0,20919.0,0.73928252]
[1673667514977,0.374099,20920.0,20919.0,0.73928252]
[1673667515219,0.955976,20921.0,20919.0,0.26208083]
[1673667515499,0.320781,20920.0,20919.0,0.26208083]
[1673667515731,0.50710277,20920.0,20919.0,0.26908083]
[1673667515990,0.18632177,20920.0,20919.0,0.26908083]
[1673667516297,0.70710277,20920.0,20919.0,0.26908083]
[1673667516512,1.18511377,20920.0,20919.0,0.26908083]
[1673667516756,1.18511377,20920.0,20919.0,0.27208083]
[1673667517267,1.18511377,20920.0,20919.0,0.28208083]
[1673667517517,0.998792,20920.0,20919.0,0.28208083]
[1673667518057,1.17141017,20920.0,20919.0,0.26208083]
[1673667518300,0.998792,20920.0,20919.0,0.27308083]
[1673667519058,0.798792,20920.0,20919.0,0.27308083]
[1673667519307,1.16418428,20920.0,20919.0,0.27308083]
[1673667519564,1.16418428,20920.0,20919.0,0.28408083]
[1673667519831,0.96418428,20920.0,20919.0,0.28408083]
[1673667521697,1.16418428,20920.0,20919.0,0.28408083]
[1673667521964,0.96418428,20920.0,20919.0,0.28408083]
[1673667522772,1.16418428,20920.0,20919.0,0.28408083]
[1673667523049,0.998792,20920.0,20919.0,0.28408083]
[1673667523319,0.477918,20925.0,20919.0,1.32588526]
[1673667523599,2.6025,20926.0,20919.0,1.32588526]
[1673667523600,0.18106293,20926.0,20921.0,0.47720169]
[1673667523858,0.01441698,20927.0,20923.0,0.47720169]
[1673667524339,0.01441698,20927.0,20924.0,0.60298743]
[1673667524346,0.01441698,20927.0,20925.0,0.2]
[1673667524620,0.01441698,20927.0,20926.0,0.47720169]
[1673667524857,0.01441698,20927.0,20926.0,0.79794669]
[1673667525387,0.1784334,20927.0,20926.0,0.47720169]
[1673667525646,0.01441698,20927.0,20926.0,0.47720169]
[1673667525889,0.178534,20927.0,20926.0,0.47720169]
[1673667526153,0.01441698,20927.0,20926.0,0.47720169]
[1673667526694,0.01441698,20927.0,20926.0,0.80794669]
[1673667528231,0.01441698,20927.0,20926.0,1.44764776]
[1673667528587,0.01441698,20927.0,20926.0,1.43764776]
[1673667529069,0.01441698,20927.0,20926.0,1.29549747]
[1673667529380,0.01441698,20927.0,20926.0,1.30249747]
[1673667529660,0.50835262,20927.0,20926.0,1.23143016]
[1673667529903,0.66208767,20927.0,20926.0,0.43348347]
[1673667530173,0.49226798,20927.0,20926.0,1.19503121]
[1673667530437,0.65176637,20927.0,20926.0,1.05300585]
[1673667530715,0.65176637,20927.0,20926.0,1.04600585]
[1673667530995,0.65176637,20927.0,20926.0,1.05600585]
[1673667531254,0.65176637,20927.0,20926.0,0.83276157]
[1673667531485,0.65176637,20927.0,20926.0,0.84276157]
[1673667532052,0.65176637,20927.0,20926.0,0.91409517]
[1673667532309,0.65176637,20927.0,20926.0,1.19844122]
[1673667532900,0.65176637,20927.0,20926.0,1.05653287]
[1673667533098,0.65176637,20927.0,20926.0,1.19897137]
[1673667533391,0.65176637,20927.0,20926.0,1.62505261]
[1673667533635,0.65176637,20927.0,20926.0,1.34070656]
[1673667533959,0.01441698,20927.0,20926.0,0.98531708]
[1673667534162,0.01441698,20927.0,20926.0,1.41228993]
[1673667534420,0.01441698,20927.0,20926.0,0.98531708]
[1673667534721,0.01441698,20927.0,20926.0,1.41228993]
[1673667535027,0.01441698,20927.0,20926.0,1.73303493]
[1673667535504,0.01441698,20927.0,20926.0,1.72303493]
[1673667535753,0.01441698,20927.0,20926.0,1.73003493]
[1673667536267,0.14780698,20927.0,20926.0,1.73748558]
[1673667536526,0.01441698,20927.0,20926.0,1.29606208]
[1673667536766,0.01441698,20927.0,20926.0,0.99231708]
[1673667537020,0.19541888,20927.0,20926.0,1.34853894]
[1673667537279,0.01441698,20927.0,20926.0,1.34853894]
[1673667537571,0.01441698,20927.0,20926.0,0.99231708]
[1673667538102,0.01441698,20927.0,20926.0,1.74056247]
[1673667538336,0.01441698,20927.0,20926.0,1.31306208]
[1673667538879,0.01441698,20927.0,20926.0,1.9440099]
[1673667539153,0.01441698,20927.0,20926.0,1.9270099]
[1673667539426,0.01441698,20927.0,20926.0,2.0140099]
[1673667540468,0.01441698,20927.0,20926.0,1.38306208]
[1673667541517,0.01441698,20927.0,20926.0,1.81059886]
[1673667541791,0.01441698,20927.0,20926.0,1.72359886]
[1673667542059,0.01441698,20927.0,20926.0,1.31306208]
[1673667542905,0.01441698,20927.0,20926.0,1.9270099]
[1673667543367,0.01441698,20927.0,20926.0,2.0140099]
[1673667543368,0.01433817,20927.0,20926.0,2.0140099]
[1673667544024,0.01433817,20927.0,20926.0,1.38306208]
[1673667545354,0.01433817,20927.0,20926.0,2.0140099]
[1673667545568,0.01433817,20927.0,20926.0,1.38306208]
[1673667547414,0.01433817,20927.0,20926.0,1.81073659]
[1673667547932,0.01433817,20927.0,20926.0,1.38306208]
[1673667548088,0.01433817,20927.0,20926.0,1.93753692]
[1673667548309,0.01061792,20927.0,20926.0,1.95453692]
[1673667548534,0.18036141,20927.0,20926.0,1.81199282]
[1673667548761,0.18036141,20927.0,20926.0,1.59816536]
[1673667549002,0.18036141,20927.0,20926.0,1.18915424]
[1673667549186,0.18036141,20927.0,20926.0,1.20615424]
[1673667549410,0.18036141,20927.0,20926.0,1.33171492]
[1673667549933,0.18036141,20927.0,20926.0,1.65945992]
[1673667550189,0.65821241,20927.0,20926.0,1.44562276]
[1673667550471,0.65821241,20927.0,20926.0,0.98231708]
[1673667550711,0.65821241,20927.0,20926.0,0.50511539]
[1673667551526,0.99848435,20927.0,20926.0,0.50511539]
[1673667551785,0.66257392,20927.0,20926.0,0.50511539]
[1673667552047,0.86257392,20927.0,20926.0,0.50511539]
[1673667552592,0.91048137,20927.0,20921.0,0.14256068]
[1673667552895,0.13681,20922.0,20919.0,0.26899326]
[1673667553134,1.99879495,20921.0,20919.0,0.26899326]
[1673667553396,1.82468995,20921.0,20919.0,0.26899326]
[1673667553675,0.174105,20920.0,20919.0,0.26899326]
[1673667553929,0.852116,20920.0,20919.0,0.26899326]
[1673667554726,0.988316,20920.0,20919.0,0.26899326]
[1673667555736,1.1397811,20920.0,20919.0,0.26999326]
[1673667555737,0.988116,20920.0,20919.0,0.26999326]
[1673667555996,1.18370411,20920.0,20919.0,0.26999326]
[1673667556535,1.15303693,20920.0,20919.0,0.26999326]
[1673667556780,0.93641994,20920.0,20919.0,0.26999326]
[1673667557033,0.93641994,20920.0,20919.0,0.26499326]
[1673667557292,0.788116,20920.0,20919.0,0.26499326]
[1673667557809,0.788116,20920.0,20919.0,0.26482372]
[1673667558093,0.94839697,20920.0,20919.0,0.26482372]
[1673667558354,0.95020642,20920.0,20919.0,0.26482372]
[1673667558645,0.788116,20920.0,20919.0,0.26482372]
[1673667558877,1.01083929,20920.0,20919.0,0.26482372]
[1673667559431,0.97512436,20920.0,20919.0,0.26482372]
[1673667560198,1.01083929,20920.0,20919.0,0.26482372]
[1673667560795,0.91948196,20920.0,20919.0,0.26482372]
[1673667561540,0.73834317,20920.0,20919.0,0.26482372]
[1673667563660,0.63673429,20920.0,20919.0,0.26482372]
[1673667564205,0.15872329,20920.0,20919.0,0.74202541]
[1673667564734,0.15872329,20920.0,20919.0,0.88458609]
[1673667565074,0.15872329,20920.0,20919.0,1.20533109]
[1673667565265,0.15872329,20920.0,20919.0,0.74202541]
[1673667565794,0.136,20920.0,20919.0,0.74202541]
[1673667566562,0.614011,20920.0,20919.0,0.74202541]
[1673667567330,0.98975335,20920.0,20919.0,0.26482372]
[1673667567597,0.71562,20920.0,20919.0,0.26482372]
[1673667567857,0.91562,20920.0,20919.0,0.26482372]
[1673667569183,0.88693583,20920.0,20919.0,0.26482372]
[1673667569993,0.71562,20920.0,20919.0,0.35139246]
[1673667570233,0.71562,20920.0,20919.0,0.26482372]
[1673667570785,0.614011,20920.0,20919.0,0.26482372]
[1673667571050,0.71562,20920.0,20919.0,0.26482372]
[1673667571506,0.614011,20920.0,20919.0,0.26482372]
[1673667573061,0.136,20920.0,20919.0,0.74202541]
[1673667573557,0.136,20920.0,20919.0,1.06277041]
[1673667573847,0.136,20920.0,20919.0,0.74202541]
[1673667574874,0.614011,20920.0,20919.0,0.74202541]
[1673667576182,0.614011,20920.0,20919.0,0.26482372]
[1673667577234,0.76747754,20920.0,20919.0,0.26482372]
[1673667579305,0.614011,20920.0,20919.0,0.26482372]
[1673667579573,0.136,20920.0,20919.0,1.24096585]
[1673667579836,0.136,20920.0,20919.0,1.70424393]